Cogmind - Beta 11.1 --- EXPLORER MODE // 2022.12.20 @ 16:03:52 Player: Genju Result: Self-destructed Performance ------------- Evolutions (1) 500 Regions Visited (2) 400 Robots Destroyed (34) 170 Value Destroyed (998) 998 Prototype IDs (0) 0 Alien Tech Used (0) 0 Bonus (0) 0 TOTAL SCORE: 2068 Bonus ------- None Cogmind --------- Core Integrity 375/400 Matter 299/300 Energy 220/220 System Corruption 1% Temperature Cool (0) Movement Walking (120) Location -9/Materials Parts ------- > --- POWER (2) -------- Light Nuclear Core Light Nuclear Core > --- PROPULSION (3) --- Carbon-fiber Leg > --- UTILITY (3) ------ Improved Heat Sink Signal Interpreter Hacking Suite > --- WEAPON (2) ------- Shock Rifle > --- INVENTORY (5) ---- Carbon-fiber Leg Shock Rifle Shock Rifle Katana Peak State ------------ > --- POWER ------------ Light Nuclear Core Light Nuclear Core > --- PROPULSION ------- Carbon-fiber Leg Carbon-fiber Leg Carbon-fiber Leg > --- UTILITY ---------- Improved Heat Sink Signal Interpreter Hacking Suite > --- WEAPON ----------- Shock Rifle Shock Rifle > --- INVENTORY -------- Improved Ion Engine Carbon-fiber Leg Shock Rifle Shock Rifle Katana [Rating: 29] Favorites ----------- Power Light Nuclear Core Engine Ion Engine Power Core Light Nuclear Core Propulsion Carbon-fiber Leg Leg Carbon-fiber Leg Utility Improved Heat Sink Device Improved Heat Sink Processor Signal Interpreter Hackware Hacking Suite Protection Utility Shielding Weapon Shock Rifle Energy Gun Shock Rifle Build | -11 -10 -9 ------- Run | Scr Mat Mat Slots Evolved 3 | . 1 2 Power 1 | . . 1 Propulsion 1 | . . 1 Utility 1 | . 1 . Weapon . | . . . Parts Attached 36 | 7 8 21 Power 10 | 1 2 7 Engine 3 | 1 . 2 Core 7 | . 2 5 Reactor . | . . . Propulsion 10 | 2 . 8 Treads . | . . . Leg 10 | 2 . 8 Wheel . | . . . Hover . | . . . Flight . | . . . Utility 7 | 2 2 3 Device 3 | . 2 1 Storage . | . . . Processor 1 | . . 1 Hackware 1 | . . 1 Protection 2 | 2 . . Artifact . | . . . Weapon 9 | 2 4 3 Energy Gun 9 | 2 4 3 Energy Cannon . | . . . Ballistic Gun . | . . . Ballistic Cannon . | . . . Launcher . | . . . Special Weapon . | . . . Impact Weapon . | . . . Slashing Weapon . | . . . Piercing Weapon . | . . . Special Melee Weapon . | . . . Unidentified Prototypes . | . . . Parts Lost 3 | . 1 2 Power 1 | . . 1 Propulsion . | . . . Utility 1 | . . 1 Weapon 1 | . 1 . Highest Loss Streak 2 | . 1 2 To Critical Strikes . | . . . Average Slot Usage (%) 96 | . 98 96 Engine 1 | . 3 . Core 13 | . 8 16 Leg 27 | . 25 29 Device 13 | . 10 15 Processor 5 | . . 8 Hackware 1 | . . 3 Protection 11 | . 25 2 Energy Gun 21 | . 24 19 Naked Turns . | . . . Heaviest Build 19 | 11 14 19 Greatest Support 45 | 20 20 45 Greatest Overweight (x) . | . . . Average Overweight (x) . | . . . Largest Inventory Capacity 5 | 5 5 5 Average Capacity 5 | 5 5 5 Most Carried 5 | 5 5 5 Average Carried 4 | 2 3 4 Final Capacity 5 | 5 5 5 Final Carried 5 | 3 5 4 Class Distribution -------------------- 87% | Hacker-Mutant 12% | Scavenger-Mutant Dominant Class ---------------- Hacker-Mutant | -10/Materials Hacker-Mutant | -9/Materials Resources | -11 -10 -9 ----------- Run | Scr Mat Mat Matter Collected 559 | 215 95 249 Remotely . | . . . Salvage Created 1290 | . 440 850 Parts 77 | . 21 56 Haulers Intercepted . | . . . Recyclers Shooed . | . . . Parts Field Recycled . | . . . Retrieved Matter . | . . . Parts Self-Destructed . | . . . Prevented . | . . . Kills | -11 -10 -9 ------- Run | Scr Mat Mat Combat Hostiles Destroyed 24 | . 8 16 Guns 20 | . 8 12 AOE 3 | . . 3 Classes Destroyed 7 | . 2 5 Tunneler 1 | . . 1 Operator 1 | . . 1 Watcher 8 | . 3 5 Swarmer 5 | . . 5 Grunt 12 | . 8 4 Duelist 1 | . . 1 Sentry 6 | . . 6 Best Kill Streak 3 | . 2 3 Combat Bots Only 3 | . 2 3 Max Kills in Single Turn 2 | . 1 2 Gunslinging 1 | . . 1 Exploded 1 | . . 1 Melee . | . . . Uniques/NPCs Destroyed . | . . . Combat | -11 -10 -9 -------- Run | Scr Mat Mat Damage Taken 473 | . 233 240 Core 69 | . 44 25 Absorbed by Shields . | . . . Redirected to Shielding 22 | . 11 11 Regen/Repaired (Parts) 61 | . 40 21 Core Remaining (%) 91 | 100 82 . Volleys Fired 69 | . 32 37 Largest 2 | . 2 2 Hottest 100 | . 90 100 Shots Fired 134 | . 60 74 Gun 134 | . 60 74 Cannon . | . . . Launcher . | . . . Special . | . . . Kinetic . | . . . Thermal 47 | . 47 . Explosive . | . . . Electromagnetic 87 | . 13 74 Robot Hit Streak 16 | . 11 16 Robot Miss Streak 3 | . 3 1 Penetration Max . | . . . Secondary Targets 4 | . 1 3 Max Gunslinging Chain 1 | . 1 1 Shots Hit Robots 106 | . 47 59 Core Hits 51 | . 22 29 Critical Kills . | . . . Critical Parts Destroyed . | . . . Critical Strikes 1 | . 1 . Burn 1 | . 1 . Melee Attacks . | . . . Impact . | . . . Slashing . | . . . Piercing . | . . . Sneak Attacks . | . . . Combat Hostiles . | . . . Follow-up Attacks . | . . . Damage Inflicted 1679 | . 600 1079 Guns 1558 | . 600 958 Cannons . | . . . Explosions 121 | . . 121 Melee . | . . . Ramming . | . . . Kinetic . | . . . Thermal 583 | . 462 121 Explosive . | . . . Electromagnetic 1096 | . 138 958 Impact . | . . . Slashing . | . . . Piercing . | . . . Highest Corruption 1 | . . 1 Average Corruption 1 | . . 1 Corruption Purged . | . . . Corruption Blocked . | . . . Overload Shots . | . . . Overflow Damage . | . . . Projectiles . | . . . Explosions . | . . . Melee . | . . . Knockbacks . | . . . Impact . | . . . Kinetic . | . . . Secondary . | . . . Self-Inflicted Damage . | . . . Shots . | . . . Rammed . | . . . Targets Rammed . | . . . Kicked . | . . . Crushed . | . . . Highest Temperature 70 | . 70 63 Average Temperature 22 | . 22 23 Received Heat Transfer 348 | . 234 114 Siege Activations . | . . . Robots Corrupted 1 | . . 1 Combat Hostiles 1 | . . 1 Parts Fried 8 | . 1 7 Impact Corruptions . | . . . Robots Melted . | . . . Combat Hostiles . | . . . Parts Melted 4 | . 4 . Heat Transferred 1422 | . 1372 50 Parts Sabotaged . | . . . Parts Stolen . | . . . Parts Stripped . | . . . Power Chain Reactions 3 | . . 3 Missiles Intercepted . | . . . Alert | -11 -10 -9 ------- Run | Scr Mat Mat Peak Influence 327 | . 205 327 Initial . | . . . Average 63 | . 33 83 Maximum Alert Level 1 | . 1 1 Low Security (%) 93 | 100 96 90 Level 1 6 | . 3 9 Level 2 . | . . . Level 3 . | . . . Level 4 . | . . . Level 5 . | . . . High Security . | . . . Max Security . | . . . Squads Dispatched 1 | . . 1 Investigation . | . . . Extermination . | . . . Reinforcement 1 | . . 1 Assault . | . . . Garrison . | . . . Intercept . | . . . Searches Triggered . | . . . Construction Impeded . | . . . Haulers Reinforced . | . . . Active Scanning Responses . | . . . Cargo Convoy Interrupts . | . . . Stealth | -11 -10 -9 --------- Run | Scr Mat Mat Distress Signals 1 | . . 1 Communications Jammed . | . . . Distress Signals . | . . . Times Spotted 38 | . 13 25 Peak Tracking Total 4 | . 4 3 Tactical Retreats 3 | . 2 1 Traps | -11 -10 -9 ------- Run | Scr Mat Mat Traps Triggered 6 | . . 6 Indirectly . | . . . Trap Hack Attempts . | . . . Triggered . | . . . Disarmed 7 | . 6 1 Reprogrammed . | . . . Reused . | . . . Traps Extracted . | . . . Installed . | . . . Triggered . | . . . Machines | -11 -10 -9 ---------- Run | Scr Mat Mat Machines Disabled 2 | . . 2 Max in Single Turn 1 | . . 1 Machines Sabotaged . | . . . Garrisons Compromised . | . . . Overloaded Fab Kills . | . . . Hacking | -11 -10 -9 --------- Run | Scr Mat Mat Machines Accessed 22 | . 11 11 Terminals 17 | . 8 9 Fabricators . | . . . Repair Stations 2 | . 1 1 Recycling Units 3 | . 2 1 Scanalyzers . | . . . Garrison Access . | . . . Total Hacks 68 | . 31 37 Successful 47 | . 18 29 Failed 21 | . 13 8 Catastrophic 3 | . 2 1 Database Lockouts . | . . . Manual 56 | . 22 34 Terminals 55 | . 23 32 Fabricators . | . . . Repair Stations 5 | . 3 2 Recycling Units 8 | . 5 3 Scanalyzers . | . . . Garrison Access . | . . . Terminal Hacks 15 | . 4 11 Record 2 | . . 2 Part Schematic 8 | . . 8 Alert Level 1 | . 1 . Locate Traps 1 | . 1 . Disarm Traps 2 | . 1 1 Zone Layout 1 | . 1 . Fabricator Hacks . | . . . Repair Station Hacks 4 | . 2 2 Scan Component 2 | . 1 1 Repair 2 | . 1 1 Recycling Unit Hacks 5 | . 3 2 Process 1 | . 1 . Report Inventory 2 | . 1 1 Retrieve Matter 1 | . 1 . Retrieve Components 1 | . . 1 Scanalyzer . | . . . Garrison Access Hacks . | . . . Unauthorized Hacks 23 | . 9 14 Terminals 20 | . 7 13 Assimilate 8 | . 3 5 Botnet 12 | . 4 8 Fabricators . | . . . Repair Stations . | . . . Recycling Units 3 | . 2 1 Reject 3 | . 2 1 Scanalyzers . | . . . Garrison Access . | . . . Data Cores Recovered 1 | . . 1 Used . | . . . Hacking Detections 19 | . 10 9 Full Trace Events . | . . . Feedback Events . | . . . Feedback Blocked . | . . . Robot Schematics Acquired . | . . . Robots Built . | . . . Authchips . | . . . Time . | . . . Total Robot Build Rating . | . . . Part Schematics Acquired 8 | . . 8 Parts Built . | . . . Authchips . | . . . Time . | . . . Total Part Build Rating . | . . . Parts Repaired 2 | . 1 1 Time 32 | . 13 19 Parts Recycled . | . . . Recycled Matter 31 | . 31 . Retrieved Matter 31 | . 31 . Retrieved Components 9 | . . 9 Parts Scanalyzed . | . . . Part Schematics Acquired . | . . . Parts Damaged . | . . . Bothacking | -11 -10 -9 ------------ Run | Scr Mat Mat Used RIF Installer . | . . . Robots Hacked . | . . . Non-combat . | . . . Combat . | . . . Robot Hacks Applied . | . . . Relay Couplers Released . | . . . Fabnet Peak Effective % . | . . . Robots Rewired . | . . . Allies Hacked . | . . . Hacks Repelled . | . . . Allies | -11 -10 -9 -------- Run | Scr Mat Mat Total Allies . | . . . Largest Group . | . . . Highest-Rated Group . | . . . Highest-Rated Ally . | . . . Total Orders . | . . . Ally Attacks . | . . . Total Damage . | . . . Kills . | . . . Allies Corrupted . | . . . Allies Melted . | . . . Intel | -11 -10 -9 ------- Run | Scr Mat Mat Robot Analysis Total . | . . . Derelict Logs Recovered . | . . . Drone Launches . | . . . Drone Recoveries . | . . . Exploration | -11 -10 -9 ------------- Run | Scr Mat Mat Turns Passed 3516 | 69 1285 2162 Spaces Moved 2210 | 55 782 1373 Core 19 | 19 . . Treads . | . . . Legs 2191 | 36 782 1373 Wheels . | . . . Hover . | . . . Flight . | . . . Fastest Speed 50 | 50 120 120 Average Speed 119 | 95 120 120 Slowest Speed 120 | 120 120 120 Overloaded Moves . | . . . Propulsion Burnouts . | . . . Robots Hopped . | . . . Cave-ins Triggered . | . . . Exploration Rate (%) 60 | 5 97 79 Regions Visited 2 Branch Regions . Pre-discovered Areas . | . . . Known Exits Taken 2 | 1 1 . Unknown Exits Taken . | . . . Scrap Searched . | . . . Spaces Dug . | . . . Terrain Destroyed 9 | . . 9 Melee . | . . . Projectile . | . . . AOE 9 | . . 9 Terrain Rammed . | . . . Walls Destroyed . | . . . Machines Disabled . | . . . Actions | -11 -10 -9 --------- Run | Scr Mat Mat Total 2955 | 71 1069 1815 Wait 591 | . 231 360 Move 2208 | 54 781 1373 Hop . | . . . Pick Up 31 | 10 11 10 Fast Attach 6 | . . 6 Attach 14 | 7 3 4 Detach . | . . . Swap 16 | . 5 11 Drop 20 | . 6 14 Fire 69 | . 32 37 Melee . | . . . Ram . | . . . Kick . | . . . Crush . | . . . Escape Stasis . | . . . Rewire . | . . . Trap . | . . . Miscellaneous . | . . . Route ------- -11/Scrapyard -10/Materials (discovered 4 exits: *Mat x3 / *Min) -9/Materials (discovered 3 exits: *Mat x2 / *Sto) History --------- Turn | Location | Event 4 | -11/Scrapyard | Identified exit to Materials 4 | -11/Scrapyard | Discovered exit to Materials (range 15) 70 | -11/Scrapyard | Entered Materials 70 | -10/Materials | Evolved 1 slot: Utility x1 301 | -10/Materials | Build established: Hacker-Mutant 422 | -10/Materials | Identified exit to Mines 422 | -10/Materials | Discovered exit to Mines (range 15) 494 | -10/Materials | Identified exit to Materials 494 | -10/Materials | Discovered exit to Materials (range 16) 823 | -10/Materials | Discovered exit to Materials (range 14) 848 | -10/Materials | Repaired Med. Laser 909 | -10/Materials | Discovered exit to Materials (range 5) 1355 | -10/Materials | Entered another Materials area 1355 | -9/Materials | Evolved 2 slots: Power x1, Propulsion x1 1415 | -9/Materials | Repaired Lgt. Nuclear Core 1593 | -9/Materials | Identified exit to Storage 1593 | -9/Materials | Discovered exit to Storage (range 3) 1842 | -9/Materials | Build established: Scavenger-Mutant 2171 | -9/Materials | Identified exit to Materials 2171 | -9/Materials | Discovered exit to Materials (range 16) 2263 | -9/Materials | Build established: Hacker-Mutant 3118 | -9/Materials | Discovered exit to Materials (range 16) 3517 | -9/Materials | Self-destructed Last Messages --------------- K-01 Serf cleans the Recycling Unit. K-01 Serf cleans the Hadron Collector. Acquired Imp. Ion Engine. Dropped Lgt. Ion Engine. K-01 Serf cleans the Recycling Unit. Acquired Lgt. Nuclear Core. Dropped Imp. Ion Engine. Acquired 6 matter. Triggered Shock Trap. The floor emits a surge of raw power. System corrupted (+1). Acquired 13 matter. U-05 Engineer lays Concrete. Triggered Blade Trap. Massive razor-sharp blades shoot up from within the floor. Carbon-fiber Leg severed. Triggered Blade Trap. Massive razor-sharp blades shoot up from within the floor. Shock Rifle severed. Carbon-fiber Leg severed. Map ----- +----------------------------------------------------+ | ?# # ##%""" # #?# # #??# | | ?# #####+######+####+#### #?# + #??# | | ?# # #?# # #??# | | ?# + #?# ########## | | ?# # #?# | | ?# ############ ####### # #?# ########## | | ?# #??????????# #?????# # #?# ## #? | | ?# #??????????# #?????# ###########?# ## #? | | # ########???# #?????# #???????????# ## #? | | # ! #???# #?????# #???????????# ## "T" #? | | + #####+#####?# #???????????# ## """ #? | | # =!! #=]==[!*=!#?# #???????????# ## #? | | # !!! #*[*=!=[=!#?# ###########?# #####+#### | | ?# !! #==[!["""*#?# # #?# % | | ?# #*=![["""!#?# # #?#%##### #### | | ## /!""!!"""!### # #?# #???# #??? | | # """ #="Y=="""*# + #?# #???# #??? | | # """ #*""====[=# # #?# #???# #??? | | # """ #![!!*!=*/+ # ### #?###+#### | | # ########### + / #?# | | # #?????????# # ### #?# | | # """ #?????????# r ############# ### | | ## """ ###########u #?????????# # | | """ r #?????????# # | | ^ #?????????# %> + | | =[=@#?????????# # | | ## ###+###########?????????# # | | #[! # #????????????????## ######### | | "#* # #?????????????????# # | | "# # #?????????????????# + | | "# # ]]! #?????????????????# # | | + + ]! #?????????????????# # | | "# ! # ]! #?????????????????# # | | "####+## #########?????????????##### # """ """ | | "## # #????########?????????#!|!# # """ """ | | ## ||# #????#]]!!==#?????????#|! # # """ """ | | ### | # #????#]]!!==#??########|! # ######### | | ??#[ # #????# ## ## # #??????## | | ?## [# #????### ####?# """ ## # #??????# | | ?## # #??????# #????# """ [## = # #??????# | | ?## # #??????# #????# """ ## # ######## | | ?## [# #??????# #????# ###+## ## # | | ?## # #??????# #????# """ # # | | ?#### ## ######## #????# """ + % + | | ?####### # # #????# """ # # | | ???????# # """ # #????# ## ###### # | | ???????# # "T" # #????# ## ##???## ### | | ???????# + # ###### "T" ## # ##### # | | ???????# # # # ==!# """ ## # # + | | ???????# # ]# # == # ## #" # # | +----------------------------------------------------+ Best States ------------- Heat Dissipation 42 Energy Generation 23 Energy Capacity 325 Matter Stores 300 Matter Capacity 300 Sight Range 16 Robot Scan Range 14 Terrain Scan Density 10 Resistance: KI 35 Resistance: TH 35 Resistance: EX 35 Resistance: EM 35 Resistance: I 35 Resistance: S 35 Resistance: P 35 Propulsion Shielding 33 Utility Shielding 33 Evasion (%) 55 Offensive Hacking 30 Item Schematics ----------------- Imp. Aluminum Leg | -9/Materials | Hacked Sensor Array | -9/Materials | Hacked Signal Interpreter | -9/Materials | Hacked Aluminum Leg | -9/Materials | Hacked Hvy. EM Pulse Gun | -9/Materials | Hacked Datajack | -9/Materials | Hacked Imp. Ion Engine | -9/Materials | Hacked Shotgun | -9/Materials | Hacked Robot Schematics ------------------ None Fabricated ------------ Nothing Alien Tech Used ----------------- None Achievements -------------- None Challenges ------------ None Game ------ Seed TeslaHackingChronowheel Manual? 0 Play Time 00:41:54 Cumulative 7.9 hours Start 2022.04.23 @ 01:31:37 End 2022.12.20 @ 16:03:52 Sessions 3 Manual Loads 0 Difficulty Explorer Special Mode None Game No. 21 Rogue 1 Adventurer 3 Explorer 17 Win Type - Total 0 Types 0/0/0/0/0/0/0/0/0 Lore% 8 Gallery% 14 Achievement% 16 Wizard Run 0 Options --------- ASCII 0 Keyboard 0 Movement Numpad Keybinds 0 Fullscreen 1 Font 24/Smallcaps Map View 76x50 Tactical HUD 0 Map Filters NONE Filters NONE Steam 1 RUN: 317ceaca-f0f5-4d32-b011-13da6719aa90